fUSD/lending_fUSD_20250221
["ID","MTS","AMOUNT","RATE_DAILY","PERIOD"]
[353957776,1740167451547,-500.0,0.00011123,2]
[353957777,1740167451557,-500.0,0.00011123,2]
[353957778,1740167451566,-500.0,0.00011123,2]
[353957779,1740167451576,-1811.38,0.00011123,2]
[353957780,1740167451585,-575.2,0.00011123,2]
[353957781,1740167451595,-982.85,0.00011123,2]
[353957782,1740167451604,-717.22,0.00011123,2]
[353957783,1740167451614,-1375.27,0.00011123,2]
[353957784,1740167451623,-893.56,0.00011123,2]
[353957785,1740167451632,-500.0,0.00011123,2]
[353957786,1740167451641,-500.0,0.00011123,2]
[353957787,1740167451651,-809.42,0.00011123,2]
[353957788,1740167451660,-1319.65,0.00011123,2]
[353957789,1740167451670,-500.0,0.00011123,2]
[353957790,1740167451679,-1036.04,0.00011123,2]
[353957791,1740167451689,-1242.28,0.00011123,2]
[353957792,1740167451699,-617.56,0.00011123,2]
[353957793,1740167451711,-500.0,0.00011123,2]
[353957794,1740167451720,-625.0,0.00011123,2]
[353957795,1740167451729,-500.0,0.00011123,2]
[353957796,1740167451739,-948.12,0.00011123,2]
[353957797,1740167451748,-500.0,0.00011123,2]
[353957798,1740167451757,-1022.36,0.00011123,2]
[353957799,1740167451767,-500.0,0.00011123,2]
[353957800,1740167451776,-854.65,0.00011123,2]
[353957801,1740167451787,-500.0,0.00011123,2]
[353957802,1740167451797,-500.0,0.00011123,2]
[353957803,1740167451807,-926.96,0.00011123,2]
[353957804,1740167451817,-969.71,0.00011123,2]
[353957805,1740167451826,-500.0,0.00011123,2]
[353957806,1740167451836,-810.4,0.00011123,2]
[353957807,1740167451846,-500.0,0.00011123,2]
[353957808,1740167452142,-615.07,0.00011123,2]
[353957809,1740167452152,-500.0,0.00011123,2]
[353957810,1740167452162,-1192.04,0.00011123,2]
[353957811,1740167452172,-508.53,0.00011123,2]
[353957812,1740167452182,-672.33,0.00011123,2]
[353957813,1740167452193,-500.0,0.00011123,2]
[353957814,1740167452202,-1908.9,0.00011123,2]
[353957815,1740167452212,-1359.44,0.00011123,2]
[353957816,1740167452221,-500.0,0.00011123,2]
[353957817,1740167452230,-902.67,0.00011123,2]
[353957818,1740167452239,-1423.88,0.00011123,2]
[353957819,1740167452249,-717.68,0.00011123,2]
[353957820,1740167452258,-500.0,0.00011123,2]
[353957821,1740167452267,-1211.55,0.00011123,2]
[353957822,1740167452277,-2188.61,0.00011123,2]
[353957823,1740167452286,-1759.15,0.00011123,2]
[353957824,1740167452295,-697.64,0.00011123,2]
[353957825,1740167452304,-986.02,0.00011123,2]
[353957826,1740167452313,-1662.17,0.00011123,2]
[353957827,1740167452322,-500.0,0.00011123,2]
[353957828,1740167452333,-1297.0,0.00011123,2]
[353957829,1740167452343,-500.0,0.00011123,2]
[353957830,1740167452352,-861.11,0.00011123,2]
[353957831,1740167452362,-925.5,0.00011123,2]
[353957832,1740167452371,-1460.13,0.00011123,2]
[353957833,1740167452381,-596.42,0.00011123,2]
[353957834,1740167452390,-500.0,0.00011123,2]
[353957835,1740167452400,-500.0,0.00011123,2]
[353957836,1740167452409,-500.0,0.00011123,2]
[353957837,1740167452419,-1381.05,0.00011123,2]
[353957838,1740167452428,-500.0,0.00011123,2]
[353957839,1740167452439,-707.75,0.00011123,2]
[353957840,1740167452449,-905.98,0.00011123,2]
[353957841,1740167452458,-511.21,0.00011123,2]
[353957842,1740167452467,-500.0,0.00011123,2]
[353957843,1740167452476,-645.45,0.00011123,2]
[353957844,1740167452485,-600.11,0.00011123,2]
[353957845,1740167452495,-1101.61,0.00011123,2]
[353957846,1740167452504,-1349.02,0.00011123,2]
[353957847,1740167452513,-1210.32,0.00011123,2]
[353957848,1740167452523,-500.0,0.00011123,2]
[353957849,1740167452532,-599.64,0.00011123,2]
[353957850,1740167452541,-500.0,0.00011123,2]
[353957851,1740167452551,-794.86,0.00011123,2]
[353957852,1740167452560,-901.02,0.00011123,2]
[353957853,1740167452569,-500.0,0.00011123,2]
[353957854,1740167452578,-856.94,0.00011123,2]
[353957855,1740167452588,-500.0,0.00011123,2]
[353957856,1740167452599,-964.92,0.00011123,2]
[353957857,1740167452608,-500.0,0.00011123,2]
[353957858,1740167452616,-1325.37,0.00011123,2]
[353957859,1740167452626,-500.0,0.00011123,2]
[353957860,1740167452635,-1325.36,0.00011123,2]
[353957861,1740167452644,-288.32645757,0.00011123,2]
[353957862,1740167452653,-500.0,0.00011123,2]
[353957863,1740167452663,-500.0,0.00011123,2]
[353957864,1740167452672,-500.0,0.00011123,2]
[353957865,1740167452681,-777.44,0.00011123,2]
[353957866,1740167452691,-1387.99,0.00011123,2]
[353957867,1740167452704,-500.0,0.00011123,2]
[353957868,1740167452715,-500.0,0.00011123,2]
[353957869,1740167452725,-500.0,0.00011123,2]
[353957870,1740167452734,-1448.95,0.00011123,2]
[353957871,1740167452746,-500.0,0.00011123,2]
[353957872,1740167452755,-500.0,0.00011123,2]
[353957873,1740167452764,-908.66,0.00011123,2]
[353957874,1740167452776,-724.59,0.00011123,2]
[353957875,1740167452786,-500.0,0.00011123,2]
[353957876,1740167452796,-857.07,0.00011123,2]
[353957877,1740167452806,-825.21,0.00011123,2]
[353957878,1740167452815,-874.13,0.00011123,2]
[353957879,1740167452825,-500.0,0.00011123,2]
[353957880,1740167452835,-500.0,0.00011123,2]
[353957881,1740167452844,-500.0,0.00011123,2]
[353957882,1740167452854,-1679.67,0.00011123,2]
[353957883,1740167452863,-500.0,0.00011123,2]
[353957884,1740167452873,-500.0,0.00011123,2]
[353957885,1740167452883,-500.0,0.00011123,2]
[353957886,1740167452893,-500.0,0.00011123,2]
[353957887,1740167452902,-1120.09,0.00011123,2]
[353957888,1740167452912,-544.69020935,0.00011123,2]
[353957889,1740167452922,-684.04,0.00011123,2]
[353957890,1740167452931,-500.0,0.00011123,2]
[353957891,1740167452943,-1184.73,0.00011123,2]
[353957892,1740167452953,-500.0,0.00011123,2]
[353957893,1740167452963,-934.86,0.00011123,2]
[353957894,1740167452973,-1633.04,0.00011123,2]
[353957895,1740167452983,-327.77769451,0.00011123,2]
[353957896,1740167452993,-2742.63,0.00011123,2]
[353957897,1740167453003,-500.0,0.00011123,2]
[353957898,1740167453013,-500.0,0.00011123,2]
[353957899,1740167453023,-666.09,0.00011123,2]
[353957900,1740167453033,-814.84,0.00011123,2]
[353957901,1740167453042,-1339.09,0.00011123,2]
[353957902,1740167453052,-1290.16,0.00011123,2]
[353957903,1740167453062,-500.0,0.00011123,2]
[353957904,1740167453071,-600.21,0.00011123,2]
[353957905,1740167453081,-566.0,0.00011123,2]
[353957906,1740167453091,-1207.48,0.00011123,2]
[353957907,1740167453101,-1444.01,0.00011123,2]
[353957908,1740167453110,-500.0,0.00011123,2]
[353957909,1740167453120,-1395.85,0.00011123,2]
[353957910,1740167453129,-3450.46,0.00011123,2]
[353957911,1740167453138,-500.0,0.00011123,2]
[353957912,1740167453150,-500.0,0.00011123,2]
[353957913,1740167453159,-1125.15,0.00011123,2]
[353957914,1740167453171,-500.0,0.00011123,2]
[353957915,1740167453181,-1047.03,0.00011123,2]
[353957916,1740167453192,-537.84,0.00011123,2]
[353957917,1740167453202,-959.73,0.00011123,2]
[353957918,1740167453212,-500.0,0.00011123,2]
[353957919,1740167453222,-786.56,0.00011123,2]
[353957920,1740167453238,-500.0,0.00011123,2]
[353957921,1740167453247,-2785.17,0.00011123,2]
[353957922,1740167453257,-706.89,0.00011123,2]
[353957923,1740167453267,-611.17,0.00011123,2]
[353957924,1740167453276,-500.0,0.00011123,2]
[353957925,1740167453285,-500.0,0.00011123,2]
[353957926,1740167453295,-156.045622,0.00011123,2]
[353957927,1740167453304,-525.67,0.00011123,2]
[353957928,1740167453314,-819.59,0.00011123,2]
[353957929,1740167453323,-853.79,0.00011123,2]
[353957930,1740167453332,-1421.65,0.00011123,2]
[353957931,1740167453342,-500.0,0.00011123,2]
[353957932,1740167453351,-1799.84,0.00011123,2]
[353957933,1740167453360,-500.0,0.00011123,2]
[353957934,1740167453369,-500.0,0.00011123,2]
[353957935,1740167453378,-500.0,0.00011123,2]
[353957936,1740167453388,-500.0,0.00011123,2]
[353957937,1740167453397,-2465.29,0.00011123,2]
[353957938,1740167453406,-779.77,0.00011123,2]
[353957939,1740167453415,-3543.95,0.00011123,2]
[353957940,1740167453424,-382.093165,0.00011123,2]
[353957941,1740167453434,-500.0,0.00011123,2]
[353957942,1740167453444,-500.0,0.00011123,2]
[353957943,1740167453453,-1897.92,0.00011123,2]
[353957944,1740167453462,-500.0,0.00011123,2]
[353957945,1740167453471,-2898.71,0.00011123,2]
[353957946,1740167453481,-500.0,0.00011123,2]
[353957947,1740167453490,-749.44,0.00011123,2]
[353957948,1740167453500,-1425.64,0.00011123,2]
[353957949,1740167453509,-639.64,0.00011123,2]
[353957950,1740167453518,-1833.48,0.00011123,2]
[353957951,1740167453527,-500.0,0.00011123,2]
[353957952,1740167453537,-1283.58,0.00011123,2]
[353957953,1740167453546,-500.0,0.00011123,2]
[353957954,1740167453556,-500.0,0.00011123,2]
[353957955,1740167453566,-500.0,0.00011123,2]
[353957956,1740167453576,-500.0,0.00011123,2]
[353957957,1740167453585,-2412.67,0.00011123,2]
[353957958,1740167453595,-1306.89,0.00011123,2]
[353957959,1740167453605,-500.0,0.00011123,2]
[353957960,1740167453614,-500.0,0.00011123,2]
[353957961,1740167453623,-2034.14,0.00011123,2]
[353957962,1740167453633,-500.0,0.00011123,2]
[353957963,1740167453642,-2076.65,0.00011123,2]
[353957964,1740167453651,-974.92,0.00011123,2]
[353957965,1740167453661,-500.0,0.00011123,2]
[353957966,1740167453671,-1574.15,0.00011123,2]
[353957967,1740167453680,-1640.08,0.00011123,2]
[353957968,1740167453691,-500.0,0.00011123,2]
[353957969,1740167453702,-500.0,0.00011123,2]
[353957970,1740167453717,-500.0,0.00011123,2]
[353957971,1740167453727,-1453.95,0.00011123,2]
[353957972,1740167453736,-1900.25,0.00011123,2]
[353957973,1740167453746,-13118.68,0.00011123,2]
[353957974,1740167453755,-1683.88,0.00011123,2]
[353957975,1740167453765,-554.2,0.00011123,2]
[353957976,1740167453775,-511.87,0.00011123,2]
[353957977,1740167453787,-2369.7,0.00011123,2]
[353957978,1740167453797,-351.93633403,0.00011123,2]
[353957979,1740167453806,-1211.68,0.00011123,2]
[353957980,1740167453816,-500.0,0.00011123,2]
[353957981,1740167453826,-428.08642469,0.00011123,2]
[353957982,1740167453836,-500.0,0.00011123,2]
[353957983,1740167453846,-666.84,0.00011123,2]
[353957984,1740167453855,-1282.54,0.00011123,2]
[353957985,1740167453865,-1427.28,0.00011123,2]
[353957986,1740167453875,-1696.55,0.00011123,2]
[353957987,1740167453885,-500.0,0.00011123,2]
[353957988,1740167453895,-867.08,0.00011123,2]
[353957989,1740167453905,-2568.42,0.00011123,2]
[353957990,1740167453915,-1911.79,0.00011123,2]
[353957991,1740167453925,-679.07,0.00011123,2]
[353957992,1740167453936,-621.24,0.00011123,2]
[353957993,1740167453946,-747.95,0.00011123,2]
[353957994,1740167453956,-1137.83,0.00011123,2]
[353957995,1740167453965,-2035.76,0.00011123,2]
[353957996,1740167453975,-500.0,0.00011123,2]
[353957997,1740167453985,-500.0,0.00011123,2]
[353957998,1740167453994,-1256.62,0.00011123,2]
[353957999,1740167454005,-500.0,0.00011123,2]
[353958000,1740167454015,-718.0,0.00011123,2]
[353958001,1740167454024,-500.0,0.00011123,2]
[353958002,1740167454034,-901.59,0.00011123,2]
[353958003,1740167454043,-2040.15,0.00011123,2]
[353958004,1740167454053,-1477.74,0.00011123,2]
[353958005,1740167454062,-500.0,0.00011123,2]
[353958006,1740167454072,-500.0,0.00011123,2]
[353958007,1740167454082,-757.34,0.00011123,2]
[353958008,1740167454091,-2164.87,0.00011123,2]
[353958009,1740167454101,-1659.4,0.00011123,2]
[353958010,1740167454111,-1859.7,0.00011123,2]
[353958011,1740167454120,-2453.21,0.00011123,2]
[353958012,1740167454129,-561.26,0.00011123,2]
[353958013,1740167454139,-500.0,0.00011123,2]
[353958014,1740167454148,-1850.75,0.00011123,2]
[353958015,1740167454163,-500.0,0.00011123,2]
[353958016,1740167454175,-500.0,0.00011123,2]
[353958017,1740167454187,-601.04,0.00011123,2]
[353958018,1740167454197,-822.39,0.00011123,2]
[353958019,1740167454206,-734.9,0.00011123,2]
[353958020,1740167454215,-4625.02,0.00011123,2]
[353958021,1740167454224,-500.0,0.00011123,2]
[353958022,1740167454233,-1540.98,0.00011123,2]
[353958023,1740167454242,-1777.87,0.00011123,2]
[353958024,1740167454252,-500.0,0.00011123,2]
[353958025,1740167454261,-500.0,0.00011123,2]
[353958026,1740167454270,-546.46,0.00011123,2]
[353958027,1740167454281,-430.0,0.00011123,2]
[353958028,1740167454290,-500.0,0.00011123,2]
[353958029,1740167454299,-500.0,0.00011123,2]
[353958030,1740167454309,-500.0,0.00011123,2]
[353958031,1740167454318,-345.78086608,0.00011123,2]
[353958032,1740167454327,-1630.09,0.00011123,2]
[353958033,1740167454337,-500.0,0.00011123,2]
[353958034,1740167454346,-899.67,0.00011123,2]
[353958035,1740167454355,-1542.1,0.00011123,2]
[353958036,1740167454365,-557.21641287,0.00011123,2]
[353958037,1740167454374,-500.0,0.00011123,2]
[353958038,1740167454384,-547.15,0.00011123,2]
[353958039,1740167454393,-2224.84,0.00011123,2]
[353958040,1740167454403,-943.17,0.00011123,2]
[353958041,1740167454413,-500.0,0.00011123,2]
[353958042,1740167454423,-500.0,0.00011123,2]
[353958043,1740167454435,-807.22,0.00011123,2]
[353958044,1740167454447,-1405.51,0.00011123,2]
[353958045,1740167454457,-1451.47,0.00011123,2]
[353958046,1740167454467,-773.56,0.00011123,2]
[353958047,1740167454478,-863.09,0.00011123,2]
[353958048,1740167454489,-1030.82,0.00011123,2]
[353958049,1740167454498,-1414.2,0.00011123,2]
[353958050,1740167454509,-2629.27,0.00011123,2]
[353958051,1740167454519,-500.0,0.00011123,2]
[353958052,1740167454529,-1956.95,0.00011123,2]
[353958053,1740167454538,-591.21,0.00011123,2]
[353958054,1740167454549,-933.0,0.00011123,2]
[353958055,1740167454558,-572.93,0.00011123,2]
[353958056,1740167454569,-500.0,0.00011123,2]
[353958057,1740167454580,-500.0,0.00011123,2]
[353958058,1740167454589,-500.0,0.00011123,2]
[353958059,1740167454601,-1071.61,0.00011123,2]
[353958060,1740167454613,-1979.81,0.00011123,2]
[353958061,1740167454623,-2806.52,0.00011123,2]
[353958062,1740167454633,-500.0,0.00011123,2]
[353958063,1740167454642,-500.0,0.00011123,2]
[353958064,1740167454652,-1063.77,0.00011123,2]
[353958065,1740167454662,-500.0,0.00011123,2]
[353958066,1740167454671,-511.32,0.00011123,2]
[353958067,1740167454681,-1836.76,0.00011123,2]
[353958068,1740167454699,-500.0,0.00011123,2]
[353958069,1740167454712,-523.07,0.00011123,2]
[353958070,1740167454722,-500.0,0.00011123,2]
[353958071,1740167454732,-1918.18,0.00011123,2]
[353958072,1740167454742,-500.0,0.00011123,2]
[353958073,1740167454751,-1627.61,0.00011123,2]
[353958074,1740167454761,-500.0,0.00011123,2]
[353958075,1740167454771,-546.11,0.00011123,2]
[353958076,1740167454780,-500.0,0.00011123,2]
[353958077,1740167454791,-645.43,0.00011123,2]
[353958078,1740167454800,-1484.14,0.00011123,2]
[353958079,1740167454811,-500.0,0.00011123,2]
[353958080,1740167454819,-2455.95,0.00011123,2]
[353958081,1740167454829,-500.0,0.00011123,2]
[353958082,1740167454838,-500.0,0.00011123,2]
[353958083,1740167454848,-667.63,0.00011123,2]
[353958084,1740167454857,-500.0,0.00011123,2]
[353958085,1740167454867,-2372.7,0.00011123,2]
[353958086,1740167454877,-626.59,0.00011123,2]
[353958087,1740167454886,-908.08,0.00011123,2]
[353958088,1740167454896,-500.0,0.00011123,2]
[353958089,1740167454905,-500.0,0.00011123,2]
[353958090,1740167454914,-911.32,0.00011123,2]
[353958091,1740167454924,-500.0,0.00011123,2]
[353958092,1740167454933,-500.0,0.00011123,2]
[353958093,1740167454947,-5546.19,0.00011123,2]
[353958094,1740167454956,-1353.06,0.00011123,2]
[353958095,1740167454966,-500.0,0.00011123,2]
[353958096,1740167454976,-253.59,0.00011123,2]
[353958097,1740167454986,-1549.06,0.00011123,2]
[353958098,1740167454995,-1073.32,0.00011123,2]
[353958099,1740167455005,-500.0,0.00011123,2]
[353958100,1740167455015,-1586.49,0.00011123,2]
[353958101,1740167455024,-500.0,0.00011123,2]
[353958102,1740167455033,-560.32,0.00011123,2]
[353958103,1740167455043,-4218.35,0.00011123,2]
[353958104,1740167455052,-1546.99,0.00011123,2]
[353958105,1740167455061,-1702.81,0.00011123,2]
[353958106,1740167455070,-500.0,0.00011123,2]
[353958107,1740167455079,-500.0,0.00011123,2]
[353958108,1740167455088,-500.0,0.00011123,2]
[353958109,1740167455097,-1764.24,0.00011123,2]
[353958110,1740167455107,-1149.42,0.00011123,2]
[353958111,1740167455116,-735.06,0.00011123,2]
[353958112,1740167455125,-1183.25,0.00011123,2]
[353958113,1740167455135,-500.0,0.00011123,2]
[353958114,1740167455144,-636.23,0.00011123,2]
[353958115,1740167455154,-500.0,0.00011123,2]
[353958116,1740167455163,-500.0,0.00011123,2]
[353958117,1740167455174,-601.47,0.00011123,2]
[353958118,1740167455183,-500.0,0.00011123,2]
[353958119,1740167455198,-500.0,0.00011123,2]
[353958120,1740167455208,-500.0,0.00011123,2]
[353958121,1740167455217,-2271.32,0.00011123,2]
[353958122,1740167455227,-500.0,0.00011123,2]
[353958123,1740167455236,-541.45,0.00011123,2]
[353958124,1740167455245,-876.43,0.00011123,2]
[353958125,1740167455254,-2152.05,0.00011123,2]
[353958126,1740167455263,-916.64,0.00011123,2]
[353958127,1740167455272,-553.9,0.00011123,2]
[353958128,1740167455282,-1511.65,0.00011123,2]
[353958129,1740167455291,-500.0,0.00011123,2]
[353958130,1740167455299,-500.0,0.00011123,2]
[353958131,1740167455309,-3165.99,0.00011123,2]
[353958132,1740167455318,-805.35,0.00011123,2]
[353958133,1740167455327,-500.0,0.00011123,2]
[353958134,1740167455335,-714.44,0.00011123,2]
[353958135,1740167455344,-517.12,0.00011123,2]
[353958136,1740167455353,-2840.89,0.00011123,2]
[353958137,1740167455363,-500.0,0.00011123,2]
[353958138,1740167455374,-2330.01,0.00011123,2]
[353958139,1740167455386,-1123.03,0.00011123,2]
[353958140,1740167455398,-1483.29,0.00011123,2]
[353958141,1740167455409,-706.1,0.00011123,2]
[353958142,1740167455420,-500.0,0.00011123,2]
[353958143,1740167455430,-500.0,0.00011123,2]
[353958144,1740167455443,-500.0,0.00011123,2]
[353958145,1740167455455,-500.0,0.00011123,2]
[353958146,1740167455466,-762.79,0.00011123,2]
[353958147,1740167455478,-1141.98,0.00011123,2]
[353958148,1740167455489,-1041.84,0.00011123,2]
[353958149,1740167455500,-1531.08,0.00011123,2]
[353958150,1740167455512,-1281.67,0.00011123,2]
[353958151,1740167455524,-555.85,0.00011123,2]
[353958152,1740167455535,-521.28,0.00011123,2]
[353958153,1740167455546,-1097.81,0.00011123,2]
[353958154,1740167455557,-1217.74,0.00011123,2]
[353958155,1740167455567,-500.0,0.00011123,2]
[353958156,1740167455577,-1719.50181538,0.0001116,2]
[353958157,1740167455586,-500.0,0.00011204,2]
[353958158,1740167455598,-500.0,0.00011204,2]
[353958159,1740167455609,-500.0,0.00011204,2]
[353958160,1740167455620,-500.0,0.00011204,2]
[353958161,1740167455630,-151.0,0.00011204,2]
[353958162,1740167455641,-500.0,0.00011204,2]
[353958163,1740167455652,-500.0,0.00011204,2]
[353958164,1740167455663,-500.0,0.00011205,2]
[353958165,1740167455674,-500.0,0.00011205,2]
[353958166,1740167455685,-575.69,0.00011205,2]
[353958167,1740167455702,-500.0,0.00011205,2]
[353958168,1740167455713,-500.0,0.00011205,2]
[353958169,1740167455724,-500.0,0.00011205,2]
[353958170,1740167455735,-500.0,0.00011205,2]
[353958171,1740167455747,-500.0,0.00011205,2]
[353958172,1740167455759,-681.16,0.00011205,2]
[353958173,1740167455770,-500.0,0.00011205,2]
[353958174,1740167455782,-817.79,0.00011205,2]
[353958175,1740167455794,-500.0,0.00011205,2]
[353958176,1740167455805,-723.6,0.00011205,2]
[353958177,1740167455816,-1031.25,0.00011205,2]
[353958178,1740167455826,-687.99,0.00011205,2]
[353958179,1740167455837,-500.0,0.00011205,2]
[353958180,1740167455848,-500.0,0.00011205,2]
[353958181,1740167455860,-500.0,0.00011205,2]
[353958182,1740167455871,-500.0,0.00011205,2]
[353958183,1740167455884,-500.0,0.00011205,2]
[353958184,1740167455895,-500.0,0.00011205,2]
[353958185,1740167455906,-500.0,0.00011205,2]
[353958186,1740167455916,-791.84,0.00011205,2]
[353958187,1740167455927,-500.0,0.00011205,2]
[353958188,1740167455938,-500.0,0.00011205,2]
[353958189,1740167455948,-643.32,0.00011205,2]
[353958190,1740167455959,-758.78,0.00011205,2]
[353958191,1740167455969,-582.11,0.00011205,2]
[353958192,1740167455982,-500.0,0.00011205,2]
[353958193,1740167455995,-500.0,0.00011205,2]
[353958194,1740167456007,-757.52,0.00011205,2]
[353958195,1740167456017,-500.0,0.00011205,2]
[353958196,1740167456027,-500.0,0.00011205,2]
[353958197,1740167456038,-500.0,0.00011205,2]
[353958198,1740167456048,-500.0,0.00011205,2]
[353958199,1740167456059,-500.0,0.00011205,2]
[353958200,1740167456070,-514.16124026,0.00011205,2]
[353958201,1740167456081,-500.0,0.00011205,2]
[353958202,1740167456093,-500.0,0.00011205,2]
[353958203,1740167456105,-500.0,0.00011205,2]
[353958204,1740167456116,-555.11,0.00011205,2]
[353958205,1740167456125,-730.45,0.00011205,2]
[353958206,1740167456136,-700.04,0.00011205,2]
[353958207,1740167456146,-186.02033412,0.00011205,2]
[353958208,1740167456157,-500.0,0.00011205,2]
[353958209,1740167456167,-521.52024269,0.00011205,2]
[353958210,1740167456178,-639.37,0.00011205,2]
[353958211,1740167456189,-644.32,0.00011205,2]
[353958212,1740167456200,-500.0,0.00011205,2]
[353958213,1740167456210,-500.0,0.00011205,2]
[353958214,1740167456220,-500.0,0.00011205,2]
[353958215,1740167456231,-831.04,0.00011205,2]
[353958216,1740167456241,-500.0,0.00011205,2]
[353958217,1740167456252,-500.0,0.00011205,2]
[353958218,1740167456263,-500.0,0.00011205,2]
[353958219,1740167456273,-500.0,0.00011205,2]
[353958220,1740167456284,-515.07,0.00011205,2]
[353958221,1740167456295,-625.71,0.00011205,2]
[353958222,1740167456305,-500.0,0.00011205,2]
[353958223,1740167456316,-500.0,0.00011205,2]
[353958224,1740167456327,-848.84,0.00011205,2]
[353958225,1740167456338,-822.17,0.00011205,2]
[353958226,1740167456348,-745.81,0.00011205,2]
[353958227,1740167456359,-500.0,0.00011205,2]
[353958228,1740167456369,-474.39894195,0.00011205,2]
[353958229,1740167456379,-500.0,0.00011205,2]
[353958230,1740167456390,-500.0,0.00011205,2]
[353958231,1740167456400,-919.32,0.00011205,2]
[353958232,1740167456410,-500.0,0.00011205,2]
[353958233,1740167456420,-500.0,0.00011205,2]
[353958234,1740167456432,-500.0,0.00011205,2]
[353958235,1740167456446,-687.5,0.00011205,2]
[353958236,1740167456457,-500.0,0.00011205,2]
[353958237,1740167456468,-500.0,0.00011205,2]
[353958238,1740167456481,-500.0,0.00011205,2]
[353958239,1740167456492,-500.0,0.00011205,2]
[353958240,1740167456505,-500.0,0.00011205,2]
[353958241,1740167456515,-500.0,0.00011205,2]
[353958242,1740167456526,-740.68,0.00011205,2]
[353958243,1740167456537,-500.0,0.00011205,2]
[353958244,1740167456548,-151.0,0.00011205,2]
[353958245,1740167456558,-500.0,0.00011205,2]
[353958246,1740167456568,-905.88,0.00011205,2]
[353958247,1740167456579,-500.0,0.00011205,2]
[353958248,1740167456589,-500.0,0.00011205,2]
[353958249,1740167456599,-1098.49,0.00011205,2]
[353958250,1740167456609,-500.0,0.00011205,2]
[353958251,1740167456619,-500.0,0.00011205,2]
[353958252,1740167456629,-500.0,0.00011205,2]
[353958253,1740167456639,-857.44,0.00011205,2]
[353958254,1740167456650,-500.0,0.00011205,2]
[353958255,1740167456660,-500.0,0.00011205,2]
[353958256,1740167456670,-518.50621479,0.00011205,2]
[353958257,1740167456680,-809.24,0.00011205,2]
[353958258,1740167456692,-500.0,0.00011205,2]
[353958259,1740167456702,-542.87,0.00011205,2]
[353958260,1740167456714,-1331.51,0.00011205,2]
[353958261,1740167456724,-754.01,0.00011205,2]
[353958262,1740167456734,-494.0365912,0.00011205,2]
[353958263,1740167456748,-500.0,0.00011205,2]
[353958264,1740167456758,-500.0,0.00011205,2]
[353958265,1740167456768,-500.0,0.00011205,2]
[353958266,1740167456778,-1013.68,0.00011205,2]
[353958267,1740167456789,-953.54,0.00011205,2]
[353958268,1740167456800,-750.4,0.00011205,2]
[353958269,1740167456810,-687.42,0.00011205,2]
[353958270,1740167456820,-500.0,0.00011205,2]
[353958271,1740167456830,-738.46,0.00011205,2]
[353958272,1740167456841,-1329.27,0.00011205,2]
[353958273,1740167456851,-1176.97,0.00011205,2]
[353958274,1740167456861,-923.81,0.00011205,2]
[353958275,1740167456871,-571.1,0.00011205,2]